Cogmind - Beta 13 @@@ ROGUE MODE // 2024.05.14 @ 17:31:52 Player: BatSpy Result: Destroyed by X-57 Shotgunner with High-powered Shotgun Performance ------------- Evolutions (2) 1000 Regions Visited (4) 800 Robots Destroyed (31) 155 Value Destroyed (647) 647 Prototype IDs (1) 20 Alien Tech Used (0) 0 Bonus (111) 111 TOTAL SCORE: 2733 Bonus ------- Follower Combat Kills 177 Friendly Fire -66 Cogmind --------- Core Integrity 0/550 Matter 180/300 Energy 100/100 System Corruption 0% Temperature Cool (0) Movement Core (50) Location -8/Materials Parts ------- > --- POWER (2) -------- (None) > --- PROPULSION (2) --- (None) > --- UTILITY (5) ------ Experimental Sensor Array > --- WEAPON (2) ------- (None) > --- INVENTORY (5) ---- Spiked Treads Melee Analysis Suite Melee Analysis Suite Improved Datajack Peak State ------------ > --- POWER ------------ Neutrino Core > --- PROPULSION ------- Subdweller Monowheel Subdweller Monowheel > --- UTILITY ---------- Heat Sink Experimental Sensor Array Melee Analysis Suite Scrap Shield > --- WEAPON ----------- Battle Rifle Battle Rifle > --- INVENTORY -------- Spiked Treads Melee Analysis Suite Melee Analysis Suite Scrap Shield Fragment [Rating: 32] Favorites ----------- Power Light Nuclear Core Engine Light Ion Engine Power Core Light Nuclear Core Propulsion Aluminum Leg Leg Aluminum Leg Wheel Subdweller Monowheel Hover Unit Hover Unit Flight Unit Flight Unit Utility Heat Sink Device Heat Sink Storage Small Storage Unit Processor Signal Interpreter Protection Scrap Shield Weapon Beam Rifle Energy Gun Beam Rifle Ballistic Gun Battle Rifle Launcher Rocket Launcher Special Weapon Mining Laser Slashing Weapon Mining Claw Build | -11 -10 -10 -10 -8 ------- Run | Yrd Mat Min Sub Mat Slots Evolved 4 | . . . . 4 Power 1 | . . . . 1 Propulsion . | . . . . . Utility 3 | . . . . 3 Weapon . | . . . . . Parts Attached 61 | 7 31 6 11 6 Power 10 | 1 4 2 2 1 Engine 8 | 1 4 1 1 1 Core 2 | . . 1 1 . Reactor . | . . . . . Propulsion 14 | 2 8 2 2 . Treads . | . . . . . Leg 2 | . . 2 . . Wheel 4 | 2 . . 2 . Hover 3 | . 3 . . . Flight 5 | . 5 . . . Utility 12 | 2 5 . 2 3 Device 6 | . 4 . . 2 Storage 2 | 2 . . . . Processor 2 | . 1 . . 1 Hackware . | . . . . . Protection 2 | . . . 2 . Artifact . | . . . . . Weapon 25 | 2 14 2 5 2 Energy Gun 11 | . 9 1 1 . Energy Cannon . | . . . . . Ballistic Gun 8 | 2 1 . 3 2 Ballistic Cannon . | . . . . . Launcher 1 | . . . 1 . Special Weapon 3 | . 2 1 . . Impact Weapon . | . . . . . Slashing Weapon 2 | . 2 . . . Piercing Weapon . | . . . . . Special Melee Weapon . | . . . . . Unidentified Prototypes 1 | . . . . 1 Parts Lost 15 | . 2 . 3 10 Power 2 | . . . 1 1 Propulsion 3 | . 1 . . 2 Utility 4 | . . . 1 3 Weapon 6 | . 1 . 1 4 Highest Loss Streak 10 | . 1 . 3 10 To Critical Strikes . | . . . . . Average Slot Usage (%) 89 | . 97 90 83 70 Engine 6 | . 14 . 1 3 Core 7 | . . 13 11 7 Leg 11 | . . 26 9 . Wheel 6 | . 3 . 18 16 Hover 6 | . 16 1 . . Flight 2 | . 7 . . . Device 9 | . 9 14 . 17 Storage 4 | . 11 . . . Processor 4 | . 6 5 . 2 Protection 3 | . . . 12 7 Energy Gun 19 | . 20 26 14 . Ballistic Gun 6 | . 6 . 13 16 Naked Turns . | . . . . . Heaviest Build 43 | 17 17 12 39 43 Greatest Support 40 | 26 26 20 40 40 Greatest Overweight (x) 1 | . 1 . 1 1 Average Overweight (x) . | . . . . . Largest Inventory Capacity 8 | 8 8 5 5 5 Average Capacity 5 | 7 6 5 5 5 Most Carried 5 | 5 5 5 5 5 Average Carried 3 | 1 2 4 4 3 Final Capacity 8 | 8 5 5 5 5 Final Carried 5 | 1 4 5 5 4 Class Distribution -------------------- 57% | Mutant 22% | Subdweller-Mutant 20% | Scavenger-Mutant Dominant Class ---------------- Mutant | -10/Materials Mutant | -10/Mines Subdweller-Mutant | -10/Subcaves Subdweller-Mutant | -8/Materials Resources | -11 -10 -10 -10 -8 ----------- Run | Yrd Mat Min Sub Mat Matter Collected 862 | 286 294 150 115 17 Remotely . | . . . . . Salvage Created 854 | 100 456 22 176 100 Parts 57 | 1 38 4 6 8 Haulers Intercepted . | . . . . . Recyclers Shooed . | . . . . . Parts Field Recycled . | . . . . . Retrieved Matter . | . . . . . Parts Self-Destructed 13 | . . . 13 . Prevented . | . . . . . Kills | -11 -10 -10 -10 -8 ------- Run | Yrd Mat Min Sub Mat Combat Hostiles Destroyed 24 | . 13 2 6 3 Guns 19 | . 13 2 1 3 AOE 4 | . . . 4 . Classes Destroyed 8 | 1 4 . 2 1 Worker 2 | . 1 . . 1 Recycler 2 | 1 1 . . . Watcher 3 | . 3 . . . Swarmer 12 | . 8 2 . 2 Grunt 5 | . 5 . . . Hunter 1 | . . . . 1 Cobbler 1 | . . . 1 . Subdweller 6 | . . . 6 . Best Kill Streak 5 | 1 4 2 5 3 Combat Bots Only 5 | . 4 2 5 2 Max Kills in Single Turn 2 | 1 1 1 2 1 Gunslinging . | . . . . . Exploded 2 | . . . 2 . Melee . | . . . . . Uniques/NPCs Destroyed . | . . . . . Combat | -11 -10 -10 -10 -8 -------- Run | Yrd Mat Min Sub Mat Hostile Shots Fired 292 | . 113 9 28 142 Missed 92 | . 36 1 7 48 Damage Taken 2550 | . 654 78 494 1324 Core 770 | . 132 39 46 553 Absorbed by Shields . | . . . . . Regen/Repaired (Parts) 26 | . 26 . . . Core Remaining (%) 56 | 100 . . 13 . Volleys Fired 112 | 8 49 26 9 20 Largest 2 | 2 2 2 2 2 Hottest 112 | 40 112 112 112 50 Shots Fired 198 | 16 96 35 18 33 Gun 176 | 16 96 16 15 33 Cannon . | . . . . . Launcher 3 | . . . 3 . Special 19 | . . 19 . . Kinetic 102 | 16 51 . 2 33 Thermal 93 | . 45 35 13 . Explosive 3 | . . . 3 . Electromagnetic . | . . . . . Robot Hit Streak 15 | 3 15 3 3 7 Robot Miss Streak 6 | 3 6 4 2 4 Penetration Max . | . . . . . Secondary Targets 3 | . 1 1 . 1 Max Gunslinging Chain 1 | . 1 1 . 1 Shots Hit Robots 99 | 8 58 8 9 16 Core Hits 55 | 3 27 5 11 9 Critical Kills 1 | . . . . 1 Critical Parts Destroyed . | . . . . . Critical Strikes 7 | . 3 1 2 1 Burn 6 | . 3 1 2 . Destroy 1 | . . . . 1 Melee Attacks . | . . . . . Impact . | . . . . . Slashing . | . . . . . Piercing . | . . . . . Sneak Attacks . | . . . . . Combat Hostiles . | . . . . . Follow-up Attacks . | . . . . . Damage Inflicted 1923 | 70 658 114 825 256 Guns 1231 | 70 658 114 133 256 Cannons . | . . . . . Explosions 692 | . . . 692 . Melee . | . . . . . Ramming . | . . . . . Kinetic 624 | 70 282 . 16 256 Thermal 607 | . 376 114 117 . Explosive 692 | . . . 692 . Electromagnetic . | . . . . . Impact . | . . . . . Slashing . | . . . . . Piercing . | . . . . . Highest Corruption 2 | . 2 2 2 . Average Corruption 2 | . 2 2 2 . Corruption Purged . | . . . . . Corruption Blocked . | . . . . . Effects 22 | . 4 15 3 . Message Errors 3 | . . 3 . . Matter Fused 5 | . 2 2 1 . Heat Flow Errors 2 | . . 2 . . Energy Discharges 2 | . . 1 1 . Data Loss (minor) 7 | . 1 5 1 . Data Loss (major) 1 | . 1 . . . Misfires 2 | . . 2 . . Overload Shots . | . . . . . Overflow Damage 11 | . . . 11 . Projectiles . | . . . . . Explosions 11 | . . . 11 . Melee . | . . . . . Knockbacks . | . . . . . Impact . | . . . . . Kinetic . | . . . . . Secondary . | . . . . . Self-Inflicted Damage 54 | . . . 54 . Shots 2 | . . . 2 . Rammed 1 | . 1 . . . Targets Rammed 1 | . 1 . . . Kicked . | . . . . . Crushed . | . . . . . Highest Temperature 268 | . 135 268 8 . Average Temperature 41 | . 35 59 5 . Received Heat Transfer 261 | . 120 24 72 45 Siege Activations . | . . . . . Robots Corrupted . | . . . . . Combat Hostiles . | . . . . . Parts Fried . | . . . . . Impact Corruptions . | . . . . . Robots Melted 1 | . . . 1 . Combat Hostiles 1 | . . . 1 . Parts Melted 3 | . . 1 2 . Heat Transferred 1999 | . 1185 370 444 . Parts Sabotaged . | . . . . . Parts Stolen . | . . . . . Parts Stripped . | . . . . . Power Chain Reactions . | . . . . . Alert | -11 -10 -10 -10 -8 ------- Run | Yrd Mat Min Sub Mat Peak Influence 223 | 5 223 182 . 90 Initial 13 | . 3 13 . . Average 75 | . 97 71 . 20 Maximum Alert Level 1 | . 1 . . . Low Security (%) 93 | 100 84 100 . 100 Level 1 6 | . 15 . . . Level 2 . | . . . . . Level 3 . | . . . . . Level 4 . | . . . . . Level 5 . | . . . . . High Security . | . . . . . Max Security . | . . . . . Squads Dispatched 6 | . 2 1 . 3 Investigation . | . . . . . Extermination . | . . . . . Reinforcement 5 | . 2 . . 3 Assault 1 | . . 1 . . Garrison . | . . . . . Intercept . | . . . . . Searches Triggered . | . . . . . Construction Impeded . | . . . . . Haulers Reinforced . | . . . . . Active Scanning Responses . | . . . . . Cargo Convoy Interrupts . | . . . . . Stealth | -11 -10 -10 -10 -8 --------- Run | Yrd Mat Min Sub Mat Distress Signals 4 | . 3 . . 1 Communications Jammed . | . . . . . Distress Signals . | . . . . . Times Spotted 54 | . 23 6 11 14 Peak Tracking Total 8 | . 7 3 8 8 Tactical Retreats . | . . . . . Traps | -11 -10 -10 -10 -8 ------- Run | Yrd Mat Min Sub Mat Traps Triggered 2 | . 2 . . . Indirectly . | . . . . . Trap Hack Attempts . | . . . . . Triggered . | . . . . . Disarmed . | . . . . . Reprogrammed . | . . . . . Reused . | . . . . . Traps Extracted . | . . . . . Installed . | . . . . . Triggered . | . . . . . Machines | -11 -10 -10 -10 -8 ---------- Run | Yrd Mat Min Sub Mat Machines Disabled . | . . . . . Max in Single Turn . | . . . . . Machines Repaired . | . . . . . Machines Dismantled . | . . . . . Machines Sabotaged . | . . . . . Overloaded Fab Kills . | . . . . . Hacking | -11 -10 -10 -10 -8 --------- Run | Yrd Mat Min Sub Mat Machines Accessed 7 | . 6 . . 1 Terminals 5 | . 4 . . 1 Fabricators . | . . . . . Repair Stations 1 | . 1 . . . Recycling Units 1 | . 1 . . . Scanalyzers . | . . . . . Garrison Access . | . . . . . Total Hacks 14 | . 11 . . 3 Successful 7 | . 5 . . 2 Failed 7 | . 6 . . 1 Catastrophic 2 | . 2 . . . Database Lockouts . | . . . . . Manual . | . . . . . Terminals 11 | . 8 . . 3 Fabricators . | . . . . . Repair Stations 2 | . 2 . . . Recycling Units 1 | . 1 . . . Scanalyzers . | . . . . . Garrison Access . | . . . . . Terminal Hacks 4 | . 2 . . 2 Record 1 | . . . . 1 Alert Level 1 | . . . . 1 Dispatch Records 1 | . 1 . . . Hauler Manifests 1 | . 1 . . . Fabricator Hacks . | . . . . . Repair Station Hacks 2 | . 2 . . . Scan Component 1 | . 1 . . . Repair 1 | . 1 . . . Recycling Unit Hacks 1 | . 1 . . . Report Inventory 1 | . 1 . . . Scanalyzer . | . . . . . Garrison Access Hacks . | . . . . . Unauthorized Hacks . | . . . . . Terminals . | . . . . . Fabricators . | . . . . . Repair Stations . | . . . . . Recycling Units . | . . . . . Scanalyzers . | . . . . . Garrison Access . | . . . . . Data Cores Recovered . | . . . . . Used . | . . . . . Hacking Detections 5 | . 5 . . . Full Trace Events 1 | . 1 . . . Feedback Events . | . . . . . Feedback Blocked . | . . . . . Robot Schematics Acquired . | . . . . . Robots Built . | . . . . . Authchips . | . . . . . Time . | . . . . . Total Robot Build Rating . | . . . . . Part Schematics Acquired . | . . . . . Parts Built . | . . . . . Authchips . | . . . . . Time . | . . . . . Total Part Build Rating . | . . . . . Parts Repaired 1 | . 1 . . . Time 26 | . 26 . . . Parts Recycled . | . . . . . Recycled Matter . | . . . . . Retrieved Matter . | . . . . . Retrieved Components . | . . . . . Parts Scanalyzed . | . . . . . Part Schematics Acquired . | . . . . . Parts Damaged . | . . . . . Bothacking | -11 -10 -10 -10 -8 ------------ Run | Yrd Mat Min Sub Mat Used RIF Installer . | . . . . . Robots Hacked . | . . . . . Non-combat . | . . . . . Combat . | . . . . . Robot Hacks Applied . | . . . . . Relay Couplers Released . | . . . . . Fabnet Peak Effective % . | . . . . . Robots Rewired . | . . . . . Allies Hacked . | . . . . . Hacks Repelled . | . . . . . Allies | -11 -10 -10 -10 -8 -------- Run | Yrd Mat Min Sub Mat Total Allies 1 | . . 1 . . Largest Group 1 | . . 1 1 . Highest-Rated Group 31 | . . 31 31 . Highest-Rated Ally 31 | . . 31 31 . Total Orders . | . . . . . Ally Attacks 17 | . . 7 10 . Total Damage 246 | . . 102 144 . Kills 7 | . . 5 2 . Allies Corrupted . | . . . . . Allies Melted . | . . . . . Intel | -11 -10 -10 -10 -8 ------- Run | Yrd Mat Min Sub Mat Robot Analysis Total . | . . . . . Derelict Logs Recovered 3 | . . 1 2 . Drone Launches . | . . . . . Drone Recoveries . | . . . . . Exploration | -11 -10 -10 -10 -8 ------------- Run | Yrd Mat Min Sub Mat Turns Passed 2849 | 83 1002 956 570 238 Spaces Moved 2341 | 59 994 716 418 154 Core 24 | 14 . . . 10 Treads . | . . . . . Legs 756 | . . 661 95 . Wheels 609 | 45 97 . 323 144 Hover 784 | . 729 55 . . Flight 168 | . 168 . . . Fastest Speed 50 | 50 56 56 110 50 Average Speed 98 | 80 74 115 121 112 Slowest Speed 190 | 90 117 120 190 120 Overloaded Moves . | . . . . . Propulsion Burnouts . | . . . . . Robots Hopped . | . . . . . Cave-ins Triggered . | . . . . . Exploration Rate (%) 49 | 4 96 97 34 14 Regions Visited 4 Branch Regions 2 Pre-discovered Areas 1 | . . . 1 . Known Exits Taken 2 | . 1 1 . . Unknown Exits Taken 2 | 1 . . 1 . Scrap Searched 2 | . . 1 1 . Spaces Dug . | . . . . . Terrain Destroyed 15 | . . . 15 . Melee . | . . . . . Projectile . | . . . . . AOE 15 | . . . 15 . Terrain Rammed . | . . . . . Walls Destroyed . | . . . . . Machines Disabled . | . . . . . Actions | -11 -10 -10 -10 -8 --------- Run | Yrd Mat Min Sub Mat Total 2678 | 81 1166 778 463 190 Wait 62 | . 45 15 . 2 Move 2337 | 58 993 715 417 154 Hop . | . . . . . Pick Up 63 | 8 28 8 13 6 Fast Attach 2 | . . . 2 . Attach 23 | 7 8 . 2 6 Detach 1 | . . 1 . . Swap 36 | . 23 6 7 . Drop 41 | . 19 7 13 2 Fire 112 | 8 49 26 9 20 Melee . | . . . . . Ram 1 | . 1 . . . Kick . | . . . . . Crush . | . . . . . Escape Stasis . | . . . . . Rewire . | . . . . . Trap . | . . . . . Miscellaneous . | . . . . . Route ------- -11/Scrapyard -10/Materials (discovered 4 exits: *Mat x3 / *Min) -10/Mines (discovered 4 exits: *Mat x2 / [*Exi] / *Sub) -10/Subcaves -8/Materials History --------- Turn | Location | Event 25 | -11/Scrapyard | Discovered new exit (range 16) 84 | -11/Scrapyard | Entered Materials 304 | -10/Materials | Build established: Mutant 353 | -10/Materials | Discovered new exit (range 5) 586 | -10/Materials | Discovered new exit (range 15) 634 | -10/Materials | Identified exit to Mines 684 | -10/Materials | Core integrity fell below 50% 786 | -10/Materials | Discovered new exit (range 15) 828 | -10/Materials | Identified exit to Materials 913 | -10/Materials | Discovered exit to Materials (range 11) 955 | -10/Materials | Repaired Heat Sink 1086 | -10/Materials | Entered Mines 1087 | -10/Mines | Met a Derelict testing a Signal Generator 1180 | -10/Mines | Discovered new exit (range 3) 1264 | -10/Mines | Identified exit to Subcaves 1336 | -10/Mines | Discovered exit to Materials (range 13) 1437 | -10/Mines | Found a damaged Exp. Sensor Array with a note attached 1439 | -10/Mines | Found Prototype Device 1440 | -10/Mines | Build established: Scavenger-Mutant 1468 | -10/Mines | Discovered exit to Materials (range 5) 1501 | -10/Mines | Received a Rocket Launcher from a helpful Derelict 1509 | -10/Mines | Learned Materials stockpile data 1746 | -10/Mines | Build established: Mutant 1763 | -10/Mines | Deemed a non-threat by the Exiles lab entrance 1763 | -10/Mines | Discovered new exit (range 5) 2042 | -10/Mines | Entered Subcaves 2042 | -10/Subcaves | Accompanied by 1 ally 2056 | -10/Subcaves | Learned Materials terminal intel 2153 | -10/Subcaves | Ambushed by swarm of Subdwellers 2187 | -10/Subcaves | Core integrity fell below 20% 2223 | -10/Subcaves | Lost 3 parts (1p1u1w) 2375 | -10/Subcaves | Shifting Twisted Machinery released Battle Rifle 2448 | -10/Subcaves | Shifting Twisted Machinery released Spk. Treads 2461 | -10/Subcaves | Discovered new exit (range 15) 2477 | -10/Subcaves | Build established: Subdweller-Mutant 2612 | -10/Subcaves | Entered Materials 2612 | -8/Materials | Evolved 4 slots: Power x1, Utility x3 2614 | -8/Materials | Loaded intel: 12 terminal locations 2614 | -8/Materials | Identified Exp. Sensor Array 2837 | -8/Materials | Core integrity fell below 50% 2842 | -8/Materials | Core integrity fell below 20% 2850 | -8/Materials | Destroyed by X-57 Shotgunner with High-powered Shotgun Last Messages --------------- Critical hit (Blast). Acquired 4 matter. K-01 Serf collects debris. Penetrated by Slug. Melee Analysis Suite destroyed. Critical hit (Blast). Knocked back. U-05 Engineer builds a Wall. Acquired Shotgun. Heat Sink destroyed. K-01 Serf collects debris. H-61 Shepherd calls for reinforcements. ALERT: Hostile activity reported, dispatching reinforcements to area. Penetrated by Slug. Knocked back. U-05 Engineer builds a Wall. K-01 Serf collects debris. Shotgun destroyed. K-01 Serf collects debris. Map ----- +----------------------------------------------------+ | ???????????# # """ #??????????????????????????? | | ############ # """ #??????????????????????????? | | + """ #???????????????!??????????? | | # #??????????????????????????? | | """ "" # ! #??????????????????????????? | | """ T" ########??????????????????????????? | | """ "" ####?????????????????????????????????? | | """ #????????????????????????????????????? | | """ #????????????????????????????????????? | | #????????????????????????????????????? | | #????????????????????????????????????? | | """ """ #????????????????????????????????????? | | """ """ #????????????????????????????????????? | | """ """ #?????????#? ????????????????????????? | | *""" """ #???####### ???????????????????????? | | """ """ ##### [ # ! """????????????????????? | | + [ # ????????????????????? | | ##### # ????????????????????? | | ####???# # ""T""???###?????????????? | | ###### #??????# # """""???""#?????????????? | | ?????# #??????# #? =! ????"R"#?????????????? | | ?????# #??????# ####/#####" "###???????????? | | ?????# #??????####+### =s # #???????????? | | ?????# #?###### k%= # !! #???????????? | | ????? % a w a m %%+% !! #???????????? | | ????? ######## @%=H# !%= #???????????? | | ???? #??????####+### u x; = # ! ??????? | | ????## #?????????????#; &## """g/ g ????? | | ?????# #?????????????## g ## """ # ????? | | ?????# #??????????????# ## """ #?? #?????? | | ?????# +??????????????# ## #????##?????? | | ?????# #??????????????# ## = #???????????? | | ?????? #??????????????# t## !#???????????? | | ?????? ???????????????# #?########???????????? | | ?????? ???????????????# ????????????????????? | | ????????????????????????# ????????????????????? | | ????????????????????????# ???????????????????? | | ????????????????????????####+#???????????????????? | | ?????????????????????????T?? ???????????????????? | | ???????????????????????????? ???????????????????? | | ???????????????????????????? ???????????????????? | | ???????????????????????????? ????????????????????? | | ?????????????????????????????????????????????????? | | ?????????????????????????????!???????????????????? | | ?????????????????????????????????????????????????? | | ?????????????????????????????????????????????????? | | ?????????????????????????????????????????????????? | | ?????????????????????????????????????????????????? | | ?????????????????????????????????????????????????? | | ?????????????????????????????????????????????????? | +----------------------------------------------------+ Best States ------------- Heat Dissipation 41 Energy Generation 29 Energy Capacity 415 Matter Stores 300 Matter Capacity 300 Sight Range 16 Robot Scan Range 20 Terrain Scan Density 10 Armor Coverage 800 Evasion (%) 55 Melee Accuracy 5 Item Schematics ----------------- None Robot Schematics ------------------ None Fabricated ------------ Nothing Alien Tech Used ----------------- None Achievements -------------- Shopping List Challenges ------------ None Game ------ Seed OmegaDefenseFlakker Manual? 0 Play Time 00:35:39 Cumulative 3.3 hours Start 2024.05.13 @ 23:30:27 End 2024.05.14 @ 17:31:52 Sessions 5 Manual Loads 0 Difficulty Rogue Special Mode None Game No. 4 Rogue 4 Adventurer 0 Explorer 0 Win Type - Total 0 Types 0/0/0/0/0/0/0/0/0 Lore% 1 Gallery% 10 Achievement% 7 Wizard Run 0 Options --------- Layout 1 ASCII 0 Keyboard 0 Movement Mouse Keybinds 0 Fullscreen 2 Font 32/SmallcapsGlow Map View 50x35 Zoom Use 0% Tactical HUD 0 Map Filters NONE Filters NONE Steam 1 RUN: 45b26a11-b156-4a17-ab84-d2f0b89e8764